Cogmind - Beta 16.1 @@@ ROGUE MODE // 2026.03.16 @ 12:00:04 Player: Ragnakor Result: Destroyed by EK-NJ7(R) with Subdweller Machine Gun Performance ------------- Evolutions (0) 0 Regions Visited (2) 400 Robots Destroyed (4) 20 Value Destroyed (114) 114 Prototype IDs (0) 0 Alien Tech Used (0) 0 Bonus (0) 0 TOTAL SCORE: 534 Bonus ------- None Cogmind --------- Core Integrity 0/250 Matter 300/300 Energy 99/100 System Corruption 0% Temperature Cool (0) Movement Core (150) Ox2 Location -10/Subcaves Parts ------- > --- POWER (1) -------- (None) > --- PROPULSION (2) --- (None) > --- UTILITY (2) ------ Small Storage Unit Signal Interpreter > --- WEAPON (2) ------- Subdweller Laser > --- INVENTORY (8) ---- Machine Analyzer Hacking Suite Tractor Beam Peak State ------------ > --- POWER ------------ Light Nuclear Core > --- PROPULSION ------- Aluminum Leg Aluminum Leg > --- UTILITY ---------- Small Storage Unit Signal Interpreter > --- WEAPON ----------- Small Laser Subdweller Laser > --- INVENTORY -------- Ion Engine Machine Analyzer Hacking Suite Tractor Beam [Rating: 10] Favorites ----------- Power Light Nuclear Core Engine Light Ion Engine Power Core Light Nuclear Core Propulsion Aluminum Leg Leg Aluminum Leg Utility Small Storage Unit Device Tractor Beam Storage Small Storage Unit Processor Signal Interpreter Weapon Small Laser Energy Gun Small Laser Ballistic Gun Assault Rifle Build | -11 -10 -10 ------- Run | Yrd Mat Sub Slots Evolved . | . . . Power . | . . . Propulsion . | . . . Utility . | . . . Weapon . | . . . Parts Attached 13 | 7 4 2 Power 4 | 1 2 1 Engine 3 | 1 1 1 Core 1 | . 1 . Reactor . | . . . Propulsion 3 | 2 1 . Treads . | . . . Leg 3 | 2 1 . Wheel . | . . . Hover . | . . . Flight . | . . . Utility 3 | 2 1 . Device 1 | 1 . . Storage 1 | 1 . . Processor 1 | . 1 . Hackware . | . . . Protection . | . . . Artifact . | . . . Weapon 3 | 2 . 1 Energy Gun 2 | 1 . 1 Energy Cannon . | . . . Ballistic Gun 1 | 1 . . Ballistic Cannon . | . . . Launcher . | . . . Special Weapon . | . . . Impact Weapon . | . . . Slashing Weapon . | . . . Piercing Weapon . | . . . Special Melee Weapon . | . . . Unidentified Prototypes . | . . . Parts Lost 7 | . . 7 Power 2 | . . 2 Propulsion 3 | . . 3 Utility . | . . . Weapon 2 | . . 2 Highest Loss Streak 5 | . . 5 To Critical Strikes . | . . . Average Backups 3 | . 3 4 Power . | . 1 . Propulsion . | . . . Utility 1 | . 1 2 Weapon . | . . . Tool/Special . | . . . Unused Backups 2 | . . 2 Power . | . . . Propulsion . | . . . Utility 2 | . . 2 Weapon . | . . . Tool/Special . | . . . Average Slot Usage (%) 97 | . 100 96 Engine 1 | . 7 . Core 11 | . 7 13 Leg 26 | . 28 26 Device 3 | . 14 . Storage 14 | . 14 14 Processor 10 | . . 14 Energy Gun 14 | . 14 14 Ballistic Gun 12 | . 14 12 Peak Build Rating 10 | 7 9 10 Average Rating 8 | 5 8 8 On Entrance 5 | . 7 9 Avg Prop Armor Cover (%) . | . . . Naked Turns . | . . . Heaviest Build 15 | 12 14 15 Greatest Support 20 | 20 20 20 Greatest Overweight (x) 3 | . . 3 Average Overweight (x) . | . . . Largest Inventory Capacity 8 | 8 8 8 Average Capacity 7 | 7 8 8 Most Carried 5 | 1 4 5 Average Carried 3 | . 3 4 Final Capacity 8 | 8 8 8 Final Carried 4 | 1 4 3 Class Distribution -------------------- 100% | Mutant Dominant Class ---------------- Mutant | -10/Materials Mutant | -10/Subcaves Resources | -11 -10 -10 ----------- Run | Yrd Mat Sub Matter Collected 364 | 282 60 22 Remotely 141 | 81 60 . Salvage Created 219 | 81 86 52 Parts 7 | 3 3 1 Haulers Intercepted . | . . . Recyclers Shooed 1 | . 1 . Parts Field Recycled . | . . . Retrieved Matter . | . . . Parts Self-Destructed . | . . . Prevented . | . . . Parts Restored . | . . . Kills | -11 -10 -10 ------- Run | Yrd Mat Sub Combat Hostiles Destroyed 3 | . 2 1 Guns 3 | . 2 1 Classes Destroyed 3 | 1 1 1 Recycler 1 | 1 . . Grunt 2 | . 2 . Subdweller 1 | . . 1 Best Kill Streak 2 | 1 2 1 Combat Bots Only 2 | . 2 1 Max Kills in Single Turn 1 | 1 1 1 Gunslinging . | . . . Exploded . | . . . Melee . | . . . Uniques/NPCs Destroyed . | . . . Combat | -11 -10 -10 -------- Run | Yrd Mat Sub Hostile Shots Fired 69 | . 17 52 Missed 21 | . 4 17 Hits 48 | . 13 35 Projectile 48 | . 13 35 Damage Taken 951 | . 141 810 Core 274 | . 30 244 Absorbed by Shields . | . . . Core Remaining (%) 100 | 100 . . Volleys Fired 29 | 4 10 15 Largest 2 | 2 2 2 Hottest 100 | 60 60 100 Shots Fired 48 | 8 20 20 Gun 48 | 8 20 20 Cannon . | . . . Launcher . | . . . Special . | . . . Kinetic 18 | 4 10 4 Thermal 30 | 4 10 16 Explosive . | . . . Electromagnetic . | . . . Robot Hit Streak 12 | 2 4 12 Robot Miss Streak 5 | 2 5 1 Penetration Max . | . . . Secondary Targets . | . . . Shots Hit Robots 30 | 2 10 18 Core Hits 9 | 2 4 3 Critical Kills . | . . . Critical Parts Destroyed . | . . . Critical Strikes . | . . . Melee Attacks . | . . . Impact . | . . . Slashing . | . . . Piercing . | . . . Sneak Attacks . | . . . Combat Hostiles . | . . . Follow-up Attacks . | . . . Damage Inflicted 402 | 43 140 219 Guns 402 | 43 140 219 Cannons . | . . . Explosions . | . . . Melee . | . . . Ramming . | . . . Kinetic 160 | 22 85 53 Thermal 242 | 21 55 166 Explosive . | . . . Electromagnetic . | . . . Impact . | . . . Slashing . | . . . Piercing . | . . . Highest Corruption . | . . . Average Corruption . | . . . Corruption Purged . | . . . Corruption Blocked . | . . . Overload Shots . | . . . Overflow Damage . | . . . Projectiles . | . . . Explosions . | . . . Melee . | . . . Knockbacks . | . . . Impact . | . . . Kinetic . | . . . Secondary . | . . . Self-Inflicted Damage . | . . . Shots . | . . . Rammed . | . . . Targets Rammed . | . . . Kicked . | . . . Crushed . | . . . Highest Temperature 60 | . 60 4 Average Temperature 33 | . 34 4 Received Heat Transfer 237 | . 78 159 Siege Activations . | . . . Martial Activations . | . . . Shielding Activations . | . . . Robots Disrupted . | . . . Combat Hostiles . | . . . Robots Corrupted . | . . . Combat Hostiles . | . . . Parts Fried . | . . . Impact Corruptions . | . . . Robots Melted . | . . . Combat Hostiles . | . . . Parts Melted . | . . . Heat Transferred 525 | 50 125 350 Parts Sabotaged . | . . . Parts Stolen . | . . . Parts Stripped . | . . . Power Chain Reactions . | . . . Alert | -11 -10 -10 ------- Run | Yrd Mat Sub Maximum Alert Level . | . . . Low Security (%) 100 | 100 100 . Level 1 . | . . . Level 2 . | . . . Level 3 . | . . . Level 4 . | . . . Level 5 . | . . . High Security . | . . . Max Security . | . . . Peak Influence 50 | 5 50 . Initial . | . . . Average 9 | . 12 . Influence Increases 79 | 5 74 . Destroy 0b10 Robot/C 40 | . 40 . Destroy 0b10 Robot/NC 5 | 5 . . Destroy Leader 10 | . 10 . Successful Hack 24 | . 24 . Influence Decreases 79 | 5 74 . Time Decay 79 | 5 74 . Squads Dispatched 1 | . 1 . Investigation 1 | . 1 . Extermination . | . . . Reinforcement . | . . . Assault . | . . . Garrison . | . . . Intercept . | . . . Searches Triggered . | . . . Construction Impeded . | . . . Haulers Reinforced . | . . . Active Scanning Responses . | . . . Cargo Convoy Interrupts . | . . . Stealth | -11 -10 -10 --------- Run | Yrd Mat Sub Distress Signals . | . . . Communications Jammed . | . . . Distress Signals . | . . . Times Spotted 7 | . 2 5 Peak Tracking Total 3 | . 2 3 Tactical Retreats . | . . . Traps | -11 -10 -10 ------- Run | Yrd Mat Sub Traps Triggered . | . . . Indirectly . | . . . Trap Hack Attempts . | . . . Triggered . | . . . Disarmed . | . . . Reprogrammed . | . . . Reused . | . . . Traps Extracted . | . . . Installed . | . . . Triggered . | . . . Machines | -11 -10 -10 ---------- Run | Yrd Mat Sub Machines Disabled . | . . . Max in Single Turn . | . . . Machines Repaired . | . . . Machines Dismantled . | . . . Machines Sabotaged . | . . . Overloaded Fab Kills . | . . . Hacking | -11 -10 -10 --------- Run | Yrd Mat Sub Machines Accessed 3 | . 3 . Terminals 3 | . 3 . Fabricators . | . . . Repair Stations . | . . . Recycling Units . | . . . Scanalyzers . | . . . Garrison Access . | . . . Total Hacks 12 | . 12 . Successful 5 | . 5 . Failed 7 | . 7 . Catastrophic 1 | . 1 . Database Lockouts . | . . . Manual 6 | . 6 . Terminals 12 | . 12 . Fabricators . | . . . Repair Stations . | . . . Recycling Units . | . . . Scanalyzers . | . . . Garrison Access . | . . . Terminal Hacks 3 | . 3 . Robot Analysis 1 | . 1 . Branch Access Points 1 | . 1 . Hauler Manifests 1 | . 1 . Fabricator Hacks . | . . . Repair Station Hacks . | . . . Recycling Unit Hacks . | . . . Scanalyzer . | . . . Garrison Access Hacks . | . . . Unauthorized Hacks 2 | . 2 . Terminals 2 | . 2 . Botnet 2 | . 2 . Fabricators . | . . . Repair Stations . | . . . Recycling Units . | . . . Scanalyzers . | . . . Garrison Access . | . . . Data Cores Recovered . | . . . Used . | . . . Hacking Detections 3 | . 3 . Full Trace Events 1 | . 1 . Feedback Events . | . . . Feedback Blocked . | . . . Robot Schematics Acquired . | . . . Robots Built . | . . . Authchips . | . . . Time . | . . . Total Robot Build Rating . | . . . Part Schematics Acquired . | . . . Parts Built . | . . . Authchips . | . . . Time . | . . . Total Part Build Rating . | . . . Part Studies Acquired . | . . . Parts Repaired . | . . . Time . | . . . Parts Recycled . | . . . Recycled Matter . | . . . Retrieved Matter . | . . . Retrieved Components . | . . . Parts Scanalyzed . | . . . Part Schematics Acquired . | . . . Parts Damaged . | . . . Bothacking | -11 -10 -10 ------------ Run | Yrd Mat Sub Used RIF Installer . | . . . Robots Hacked . | . . . Non-combat . | . . . Combat . | . . . Robot Hacks Applied . | . . . Relay Couplers Released . | . . . Fabnet Peak Effective % . | . . . Robots Rewired . | . . . Allies Hacked . | . . . Hacks Repelled . | . . . Allies | -11 -10 -10 -------- Run | Yrd Mat Sub Total Allies . | . . . Largest Group . | . . . Highest-Rated Group . | . . . Highest-Rated Ally . | . . . Total Orders . | . . . Ally Attacks . | . . . Total Damage . | . . . Kills . | . . . Allies Corrupted . | . . . Allies Melted . | . . . Intel | -11 -10 -10 ------- Run | Yrd Mat Sub Active Infowar (turns) . | . . . Robot Analysis Total 1 | . 1 . Derelict Logs Recovered . | . . . Drone Launches . | . . . Drone Recoveries . | . . . Exploration | -11 -10 -10 ------------- Run | Yrd Mat Sub Turns Passed 1179 | 92 276 811 Spaces Moved 897 | 61 198 638 Core 24 | 6 . 18 Treads . | . . . Legs 873 | 55 198 620 Wheels . | . . . Hover . | . . . Flight . | . . . Fastest Speed 50 | 50 120 120 Average Speed 120 | 113 120 121 Slowest Speed 200 | 120 120 200 Overloaded Moves . | . . . Propulsion Burnouts . | . . . Robots Hopped . | . . . Potential Cave-ins . | . . . Cave-ins Triggered . | . . . Exploration Rate (%) 18 | 3 31 21 Regions Visited 2 Branch Regions 1 Pre-discovered Areas . | . . . Known Exits Taken 1 | . 1 . Unknown Exits Taken 1 | 1 . . Scrap Searched . | . . . Spaces Dug . | . . . Terrain Destroyed . | . . . Melee . | . . . Projectile . | . . . AOE . | . . . Terrain Rammed . | . . . Walls Destroyed . | . . . Machines Disabled . | . . . Actions | -11 -10 -10 --------- Run | Yrd Mat Sub Total 944 | 72 215 657 Wait 1 | . 1 . Move 895 | 60 197 638 Hop . | . . . Pick Up 4 | 1 2 1 Fast Attach 8 | 7 . 1 Attach 2 | . . 2 Detach . | . . . Swap 4 | . 4 . Drop 1 | . 1 . Fire 29 | 4 10 15 Melee . | . . . Ram . | . . . Kick . | . . . Crush . | . . . Escape Stasis . | . . . Rewire . | . . . Trap . | . . . Miscellaneous . | . . . Route ------- -11/Scrapyard -10/Materials (discovered 3 exits: [*Mat] / Min / *Sub) -10/Subcaves History --------- Turn | Location | Event 8 | -11/Scrapyard | Discovered new exit (range 15) 93 | -11/Scrapyard | Entered Materials 94 | -10/Materials | Met a group of wandering Federalists 271 | -10/Materials | Identified exit to Mines 318 | -10/Materials | Build established: Mutant 321 | -10/Materials | Discovered new exit (range 10) 343 | -10/Materials | Discovered new exit (range 9) 368 | -10/Materials | Identified exit to Subcaves 369 | -10/Materials | Entered Subcaves 370 | -10/Subcaves | Continued accompanying wandering Federalists (4) 370 | -10/Subcaves | Approached by a straggling Scientist 1124 | -10/Subcaves | Visited 4L-MR0's lab 1154 | -10/Subcaves | Core integrity fell below 50% 1162 | -10/Subcaves | Core integrity fell below 20% 1180 | -10/Subcaves | Destroyed by EK-NJ7(R) with Subdweller Machine Gun Last Messages --------------- H8-SAU(c): "I think it's somewhere southwest of here" 00938_ Subatomizers dissect the Imp. Heat Sink. H8-SAU(c): "I think it's somewhere south of here" 00982_ H8-SAU(c) destroyed. 00987_ Tech Extrapolator violently self-destructs. 00988_ Subatomizers dissect the Imp. Heat Sink. 00989_ Acquired Machine Analyzer. 01077_ Aluminum Leg destroyed. 01079_ Assault Rifle destroyed. 01097_ SO-XDM(R) destroyed. 01102_ Acquired 12 matter. 01104_ Acquired Sub. Laser. 01133_ Lgt. Nuclear Core destroyed. 01135_ Aluminum Leg destroyed. 01136_ Ion Engine destroyed. 01153_ Aluminum Leg destroyed. 01155_ Sml. Laser destroyed. Map ----- +----------------------------------------------------+ | ???????????#####?????????????????????????????????? | | ??????????## " #??###????????????????????????????? | | ??????????#"" "##"" ?????????????????????????????? | | ??????????#"""""# ??????????????????????????????? | | ??????????#""" / ???????????????????????????????? | | ??????????# "" #????????????????????????????????? | | ??????????#""" #?????????????????????????????????? | | ??????????#""" ##????????????????????????????????? | | ??????????#"" ""######???????????????????????????? | | ??????????## " # #???####????????????????????? | | ???????????#" ##??## ###??????????????????? | | ???????????## ## #??# ##?????????????????? | | ??????????#######" #### #?????????????????? | | ??????????# ### ## #??????????????????? | | ?????###### #?????????????##???? | | ?????# ## ###????????????## ???? | | ?????# #??????????????# #### | | ?????## % #???????????????# | | ??????# ### ####### ##???????????????## | | ??????## ###" #?????####?????????????????# | | ???????## #### ##????????????????????????## | | ???????## ### ##??????????????????????## | | ??????## ### #########?############## | | ??????# ## # # # # ### ## ### | | ??????# ## R #?# | | ??????#### @ #?? | | ?????????# # # ## ### ## # ##?? | | ?????????# ##########?########## #??? | | ?????????# #??????????????????## ##??? | | ?????????# #??????????????????# ##???? | | ?????????# #??????????????????## ##????? | | ????????# ##???????????????????###?????? | | ???????# #????????????????????????????? | | ???????## ????????????????????????????? | | ????????## ### #???????????????????????????? | | ?????????# #?# #???????????????????????????? | | ?????????# #?# #???????????????????????????? | | ?????????# ?? ###???????????????????????????? | | ?????????# ?? ##?????????????????????????????? | | ?????????## ??? #??????????????????????????????? | | ???????????# ??? ???????????????????????????????? | | ?????????????????????????????????????????????????? | | ?????????????????????????????????????????????????? | | ?????????????????????????????????????????????????? | | ?????????????????????????????????????????????????? | | ?????????????????????????????????????????????????? | | ?????????????????????????????????????????????????? | | ?????????????????????????????????????????????????? | | ?????????????????????????????????????????????????? | | ?????????????????????????????????????????????????? | +----------------------------------------------------+ Best States ------------- Heat Dissipation 25 Energy Generation 14 Energy Capacity 250 Matter Stores 300 Matter Capacity 300 Sight Range 16 Terrain Scan Density 10 Evasion (%) 55 Item Schematics ----------------- None Robot Schematics ------------------ None Fabricated ------------ Nothing Repaired ---------- Nothing Studied --------- None Alien Tech Used ----------------- None Achievements -------------- Strength In Numbers Challenges ------------ None Game ------ Seed TimingHypertargetingSpecial Manual? 0 Play Time 00:10:46 Cumulative 31.6 hours Start 2026.03.16 @ 11:53:06 End 2026.03.16 @ 12:00:04 Sessions 1 Manual Loads 0 Difficulty Rogue Special Mode None Game No. 59 Rogue 59 Adventurer 0 Explorer 0 Win Type - Total 0 Types 0/0/0/0/0/0/0/0/0/0 Lore% 29 Gallery% 25 Achievement% 22 Wizard Run 0 Options --------- Layout 1 ASCII 0 Keyboard 0 Movement Numpad Keybinds 0 Fullscreen 1 Font 24/Smallcaps Map View 50x35 Zoom Use 0% Tactical HUD 1 Map Filters NONE Filters NONE Steam 1 RUN: b04806fd-96d4-4a58-a313-298ad59626bf